bitfinex/quotes_ETHUSD_20240618
["timestamp","ask_amount","ask_price","bid_price","bid_amount"]
[1718675846617,2.9341,3408.2,3407.3,0.55]
[1718675846810,2.93402,3408.3,3407.1,3.48502]
[1718675846811,2.93419,3408.1,3407.2,3.0]
[1718675847012,2.93402,3408.3,3407.3,0.55]
[1718675847247,2.93402,3408.3,3407.4,0.703502]
[1718675847554,2.93402,3408.3,3407.5,0.55]
[1718675847841,2.93391,3408.5,3407.5,0.55]
[1718675847842,2.9341,3408.2,3407.5,0.6086871]
[1718675847999,2.9341,3408.2,3407.5,0.55]
[1718675848827,2.9341,3408.2,3407.3,0.55]
[1718675849031,2.9341,3408.2,3407.3,1.492007]
[1718675849237,2.93351,3408.9,3407.9,2.93428]
[1718675849416,2.93309,3409.4,3407.3,1.492007]
[1718675849417,2.93309,3409.4,3408.0,3.55]
[1718675849746,2.93417,3408.2,3407.7,3.0]
[1718675850043,2.93417,3408.2,3406.9,2.93519]
[1718675850044,2.93419,3408.1,3406.9,2.93519]
[1718675850216,2.93419,3408.1,3407.0,0.55]
[1718675851040,10.05704,3408.4,3406.5,2.93555]
[1718675851041,2.9348,3407.4,3406.5,2.93555]
[1718675851243,2.9347,3407.5,3406.5,2.93555]
[1718675851844,2.93454,3407.7,3406.6,2.93546]
[1718675852015,2.93462,3407.6,3406.7,2.93537]
[1718675852219,10.05708,3408.4,3407.3,2.93485]
[1718675852419,10.05708,3408.4,3407.4,3.55]
[1718675852625,2.93344,3409.0,3407.6,2.93459]
[1718675852804,2.93376,3408.6,3407.7,3.55]
[1718675853252,2.93341,3409.0,3407.7,6.48452]
[1718675853253,2.93367,3408.7,3407.7,6.48452]
[1718675853448,2.93344,3409.0,3408.0,2.93426]
[1718675853653,2.93344,3409.0,3407.8,3.64155042]
[1718675853654,2.93344,3409.0,3408.1,6.54284347]
[1718675854115,2.93308,3409.4,3408.3,2.93401]
[1718675854305,2.93308,3409.4,3408.4,3.55]
[1718675854504,2.93308,3409.4,3408.4,0.55]
[1718675854704,2.93329,3409.2,3408.5,3.0]
[1718675855006,7.3974,3409.7,3408.6,0.55]
[1718675855007,2.93359,3408.8,3408.6,0.55]
[1718675855204,2.93359,3408.8,3407.8,3.0]
[1718675855409,2.93344,3409.0,3407.9,0.55]
[1718675855410,2.93375,3408.7,3407.9,0.55]
[1718675855627,2.93375,3408.7,3407.7,3.55]
[1718675855835,2.9336,3408.8,3407.7,4.491937]
[1718675856033,2.9335,3408.9,3407.9,2.93435]
[1718675856258,2.93315,3409.3,3408.0,0.55]
[1718675856553,2.93334,3409.1,3408.0,3.55]
[1718675856700,2.93334,3409.1,3408.0,0.55]
[1718675856905,2.93374,3408.7,3408.0,0.55]
[1718675857102,2.93374,3408.7,3407.8,0.55]
[1718675857317,2.93334,3409.1,3407.9,0.05867841]
[1718675857516,2.93334,3409.1,3408.0,0.55]
[1718675857720,10.33023,3409.7,3408.1,0.05867542]
[1718675857933,2.93316,3409.3,3408.4,2.93392]
[1718675858135,2.93289,3409.6,3408.6,2.93372]
[1718675858318,2.93289,3409.6,3408.7,0.55]
[1718675858513,2.93272,3409.8,3408.8,0.05866805]
[1718675858743,2.93272,3409.8,3408.9,0.90423181]
[1718675858903,2.93282,3409.7,3409.0,0.05866099]
[1718675859104,2.93282,3409.7,3409.1,0.55]
[1718675859306,2.93282,3409.7,3408.9,0.55]
[1718675859507,2.93313,3409.4,3408.9,0.55]
[1718675859827,3.094,3409.9,3408.7,0.55]
[1718675859828,2.93342,3409.0,3408.7,0.55]
[1718675860020,2.93342,3409.0,3408.1,3.0]
[1718675860219,2.93325,3409.2,3407.9,3.0]
[1718675860220,2.93377,3408.6,3407.9,3.0]
[1718675860420,2.93362,3408.8,3407.7,3.876417]
[1718675860421,2.93388,3408.5,3407.8,3.0]
[1718675860638,2.93376,3408.6,3407.8,0.6876547]
[1718675860833,2.93365,3408.8,3407.8,0.6876547]
[1718675861036,2.93341,3409.0,3407.8,3.6220747]
[1718675861250,2.93341,3409.0,3407.7,3.0]
[1718675861251,2.9331,3409.4,3407.9,3.72088247]
[1718675861457,2.9331,3409.4,3408.0,2.93424]
[1718675861645,2.9331,3409.4,3408.2,2.93406]
[1718675861839,2.93297,3409.6,3408.3,3.0]
[1718675861840,2.93316,3409.3,3408.3,3.0]
[1718675862182,2.93275,3409.8,3408.6,2.9337]
[1718675862333,1.287071,3409.8,3408.7,0.55]
[1718675862661,1.287071,3409.8,3408.5,3.55]
[1718675862868,2.93307,3409.4,3408.5,3.55]
[1718675863271,2.93307,3409.4,3407.9,0.66220747]
[1718675863272,2.93351,3408.9,3407.9,2.93433]
[1718675863443,4.381071,3409.8,3407.1,2.93503]
[1718675863444,2.93341,3409.0,3407.4,2.93474]
[1718675863628,2.93341,3409.0,3407.8,2.93442]
[1718675864228,2.9335,3408.9,3407.9,2.93431]
[1718675864625,2.9335,3408.9,3408.0,3.0]
[1718675865344,2.9335,3408.9,3408.1,0.55]
[1718675866053,2.93361,3408.8,3408.1,0.55]
[1718675866255,2.93339,3409.1,3408.1,1.198431]
[1718675866459,2.93307,3409.4,3408.4,2.9339]
[1718675866683,2.93289,3409.6,3408.5,3.55]
[1718675866974,2.93289,3409.6,3408.6,0.55]
[1718675867270,2.93289,3409.6,3408.1,1.198431]
[1718675867445,2.93324,3409.2,3408.3,2.93401]
[1718675867766,2.93324,3409.2,3408.4,3.55]
[1718675868289,2.93295,3409.6,3408.6,2.93374]
[1718675868448,2.93295,3409.6,3408.7,3.55]
[1718675868981,2.933,3409.5,3408.7,3.55]
[1718675869281,2.9329,3409.6,3408.8,3.0]
[1718675869590,2.9329,3409.6,3408.9,0.55]
[1718675869740,2.9329,3409.6,3408.8,3.0]
[1718675870073,2.93298,3409.5,3408.9,0.55]
[1718675870283,2.93279,3409.8,3408.9,0.55]
[1718675870573,2.93279,3409.8,3408.8,0.55]
[1718675870779,2.93279,3409.8,3408.8,1.2632106]
[1718675870982,2.93279,3409.8,3408.9,2.93349]
[1718675871277,2.93279,3409.8,3409.0,3.55]
[1718675871868,2.93282,3409.7,3409.0,3.55]
[1718675872040,2.93282,3409.7,3409.1,3.0]
[1718675872240,2.93282,3409.7,3409.2,0.55]
[1718675872537,2.93282,3409.7,3409.0,0.55]
[1718675874383,2.93282,3409.7,3408.9,0.55]
[1718675874598,2.93282,3409.7,3408.8,3.0]
[1718675874599,2.93311,3409.4,3408.8,3.0]
[1718675874890,4.219906,3409.7,3407.4,0.3853]
[1718675874891,2.53353,3408.9,3407.4,0.3853]
[1718675875094,6.02729,3409.2,3407.4,0.3853]
[1718675875095,2.93342,3409.0,3408.0,2.93426]
[1718675875294,2.93342,3409.0,3408.1,0.293426]
[1718675875652,2.93342,3409.0,3407.8,2.93444]
[1718675875850,2.93359,3408.8,3407.8,2.93444]
[1718675876055,2.93342,3409.0,3407.9,2.93435]
[1718675876292,2.93332,3409.2,3408.0,2.93426]
[1718675876496,2.93332,3409.2,3408.1,0.05867548]
[1718675877004,2.9335,3408.9,3408.0,2.93426]
[1718675877231,2.9335,3408.9,3408.1,3.55]
[1718675877509,2.93349,3408.9,3408.1,3.55]
[1718675877795,2.9334,3409.1,3408.1,0.55]
[1718675878112,7.89358546,3410.0,3408.7,2.93362]
[1718675878401,2.93296,3409.6,3408.8,3.55]
[1718675878714,2.93284,3409.7,3408.8,0.55]
[1718675878872,2.93284,3409.7,3408.6,3.55]
[1718675879196,2.93284,3409.7,3408.6,6.48375]
[1718675879402,2.93272,3409.8,3408.7,3.875418]
[1718675879700,2.93272,3409.8,3408.8,3.55]
[1718675879909,2.93307,3409.4,3408.8,3.55]
[1718675880200,2.9325,3410.1,3409.0,2.9334]
[1718675880398,7.1827,3410.6,3409.1,0.60865541]
[1718675880556,1.18647322,3411.1,3409.4,2.93299]
[1718675880557,2.93161,3411.1,3409.4,2.93299]
[1718675880756,2.93181,3410.9,3409.8,2.93271]
[1718675880995,2.93181,3410.9,3409.5,2.93295]
[1718675881209,2.93223,3410.4,3409.6,3.55]
[1718675881387,2.9321,3410.6,3409.6,3.55]
[1718675881585,2.93213,3410.5,3409.7,0.941601]
[1718675881766,2.93178,3410.9,3409.8,0.60864831]
[1718675881964,2.93134,3411.5,3409.9,0.05864229]
[1718675882194,2.25177822,3411.7,3409.9,0.05864229]
[1718675882213,2.93115,3411.7,3410.0,3.48252]
[1718675882408,2.93115,3411.7,3410.1,3.05863554]
[1718675882622,2.93142,3411.4,3410.3,2.93228]
[1718675882757,2.93154,3411.2,3410.4,3.0]
[1718675882957,2.93142,3411.4,3410.4,3.0]
[1718675882958,2.93142,3411.4,3410.4,0.55]
[1718675883155,2.93124,3411.6,3410.5,0.0586356]
[1718675883379,6.9164,3411.8,3410.6,0.55]
[1718675883915,2.93135,3411.4,3410.4,0.55]
[1718675884083,2.93222,3410.4,3409.2,1.32060554]
[1718675884283,2.93239,3410.2,3409.1,2.93326]
[1718675884592,2.93239,3410.2,3408.9,2.93348]
[1718675884593,2.9324,3410.2,3409.0,2.93338]
[1718675884944,2.9324,3410.2,3408.2,2.811]
[1718675884945,2.93272,3409.8,3408.2,2.811]
[1718675885081,2.93293,3409.6,3407.9,0.3853]
[1718675885278,3.094,3409.8,3407.9,0.3853]
[1718675885481,2.9336,3408.8,3407.6,2.93458]
[1718675885715,2.9336,3408.8,3407.7,2.93451]
[1718675885927,2.93334,3409.1,3407.2,5.74595]
[1718675886130,6.8383,3409.4,3408.3,2.93399]
[1718675886281,0.3094,3409.7,3408.4,2.93384]
[1718675886481,9.77085,3410.1,3408.4,2.93384]
[1718675886682,2.93296,3409.6,3408.5,2.93382]
[1718675886882,9.77085,3410.1,3408.6,3.0]
[1718675886883,2.93326,3409.2,3408.6,3.0]
[1718675887189,2.93337,3409.1,3406.8,2.93526]
[1718675887543,2.93351,3408.9,3407.4,2.93475]
[1718675887715,2.93351,3408.9,3407.5,0.293475]
[1718675888024,2.93351,3408.9,3407.6,2.93458]
[1718675888025,2.93377,3408.6,3407.6,2.93458]
[1718675888198,2.93365,3408.8,3407.6,2.93458]
[1718675888405,2.93395,3408.4,3407.5,2.93464]
[1718675888586,2.93395,3408.4,3407.2,2.93489]
[1718675888926,2.93403,3408.3,3407.3,3.266879]
[1718675889229,2.93403,3408.3,3407.1,2.93503]
[1718675889436,3.094,3408.5,3406.5,0.3853]
[1718675889587,2.93421,3408.1,3406.8,2.93523]
[1718675889788,2.93428,3408.0,3407.0,2.93511]
[1718675889985,2.93389,3408.5,3407.3,2.93484]
[1718675890188,2.93394,3408.4,3407.1,2.93497]
[1718675890493,0.896166,3408.5,3407.3,2.93485]
[1718675890494,2.93403,3408.3,3407.3,2.93485]
[1718675890829,2.93395,3408.4,3407.3,2.93485]
[1718675891144,2.93395,3408.4,3407.4,3.55]
[1718675891302,3.094,3408.3,3407.4,3.0]
[1718675891487,2.93433,3408.0,3406.9,3.0]
[1718675891689,6.02823,3408.1,3406.5,3.32079]
[1718675891883,6.02823,3408.1,3406.5,2.93549]
[1718675891884,7.3226,3408.0,3406.5,2.93549]
[1718675892085,6.02838,3407.9,3406.4,3.39518238]
[1718675892301,2.93473,3407.5,3406.5,2.93552]
[1718675892546,2.93464,3407.6,3406.5,2.93554]
[1718675892697,2.93464,3407.6,3406.6,2.93544]
[1718675892914,2.93489,3407.3,3406.4,0.45955238]
[1718675893238,7.3226,3408.0,3406.4,0.45955238]
[1718675893239,2.935,3407.2,3406.4,0.45955238]
[1718675893396,2.93484,3407.4,3406.4,0.45955238]
[1718675893736,2.93484,3407.4,3406.1,2.93588]
[1718675893889,2.9349,3407.3,3406.3,2.93571]
[1718675894085,2.93441,3407.9,3406.3,2.93571]
[1718675894086,7.3226,3408.0,3406.4,0.05870691]
[1718675894316,0.59184377,3408.2,3407.1,2.93502]
[1718675894513,0.59184377,3408.2,3407.2,0.05868399]
[1718675894713,2.93377,3408.6,3407.6,2.93458]
[1718675895047,7.3226,3409.3,3407.9,2.93433]
[1718675895048,6.02725,3409.2,3407.9,2.93433]
[1718675895246,2.93334,3409.1,3408.0,3.55]
[1718675895392,2.93387,3408.5,3408.0,0.55]
[1718675895587,7.3226,3409.3,3407.8,0.55]
[1718675895816,10.25583,3409.3,3408.0,2.93426]
[1718675895998,7.3226,3409.3,3408.1,3.55]
[1718675896196,7.3226,3409.3,3408.1,3.60867591]
[1718675896421,2.93283,3409.7,3408.6,2.93372]
[1718675896621,2.93,3409.8,3408.2,2.93409]
[1718675896622,2.9329,3409.6,3408.7,3.55]
[1718675896835,2.93326,3409.2,3408.7,0.55]
[1718675896995,2.93281,3409.7,3408.4,0.55]
[1718675897194,2.93,3409.8,3408.7,2.93362]
[1718675897393,2.93,3409.8,3408.8,0.55]
[1718675897642,2.93317,3409.3,3408.8,3.55]
[1718675897951,2.93302,3409.5,3408.8,0.55]
[1718675898093,2.93302,3409.5,3408.5,0.348407]
[1718675898094,2.93302,3409.5,3408.6,0.55]
[1718675898625,2.93302,3409.5,3408.6,3.55]
[1718675899256,2.93308,3409.4,3408.6,3.55]
[1718675899474,6.02717,3409.3,3407.1,0.3853]
[1718675899760,2.93352,3408.9,3407.4,2.93478]
[1718675900263,2.9336,3408.8,3407.6,2.93455]
[1718675900415,2.93375,3408.7,3407.6,2.93455]
[1718675900614,2.93377,3408.6,3407.6,2.93455]
[1718675901320,2.93389,3408.5,3407.5,2.93468]
[1718675901543,6.02748,3409.0,3407.8,2.93442]
[1718675901738,7.1673,3409.4,3407.1,0.3853]
[1718675901739,2.93395,3408.4,3407.4,2.93472]
[1718675902139,2.93387,3408.5,3407.5,2.93468]
[1718675902362,7.1673,3409.4,3407.3,2.93481]
[1718675902363,3.094,3408.8,3407.3,2.93481]
[1718675902516,0.3094,3408.7,3407.3,2.93481]
[1718675902865,2.93411,3408.2,3407.2,2.93491]
[1718675903045,2.93455,3407.7,3406.7,2.93537]
[1718675903223,2.93412,3408.2,3407.2,2.93493]
[1718675903853,3.24307,3408.7,3407.2,0.293493]
[1718675903854,2.93367,3408.7,3407.2,0.293493]
[1718675904055,2.93352,3408.9,3407.7,2.93451]
[1718675904241,2.93361,3408.8,3407.8,2.99305168]
[1718675904556,2.93378,3408.6,3407.9,0.55]
[1718675904763,2.93,3409.8,3408.0,0.05867928]
[1718675904931,8.12716906,3410.7,3409.5,2.93291]
[1718675905275,4.03795591,3410.6,3409.7,2.93278]
[1718675905560,2.93188,3410.8,3409.8,0.60864761]
[1718675905745,2.93188,3410.8,3409.8,3.55]
[1718675905953,2.93195,3410.7,3409.8,0.55]
[1718675906153,2.93222,3410.4,3409.8,0.55]
[1718675906460,2.93222,3410.4,3409.5,3.55]
[1718675906669,0.586417,3410.4,3409.5,0.55]
[1718675906970,2.93231,3410.3,3409.2,6.54187763]
[1718675907125,2.93248,3410.1,3409.2,6.54187763]
[1718675907327,0.586417,3410.4,3409.3,0.05865757]
[1718675907534,2.93203,3410.6,3409.3,0.05865757]
[1718675907535,2.93205,3410.6,3409.5,2.93293]
[1718675907834,7.72412383,3411.3,3409.8,2.93271]
[1718675907835,0.88732383,3411.3,3409.8,2.93271]
[1718675908038,2.93158,3411.2,3410.0,2.93253]
[1718675908236,5.86136,3411.4,3410.1,2.99104193]
[1718675908237,2.93,3411.4,3410.1,2.99104193]
[1718675908444,2.93145,3411.3,3410.2,6.4823]
[1718675908824,2.93145,3411.3,3410.3,0.05863595]
[1718675909025,2.93,3411.4,3410.4,0.55]
[1718675909026,2.93172,3411.0,3410.4,0.55]
[1718675909275,5.86135,3411.4,3410.5,0.0586418]
[1718675909421,5.86135,3411.4,3410.6,0.55]
[1718675909840,2.93144,3411.3,3410.6,0.55]
[1718675910099,2.93153,3411.2,3410.6,0.55]
[1718675910292,2.93179,3410.9,3410.4,0.55]
[1718675910466,2.93166,3411.1,3410.4,0.55]
[1718675910768,2.9317,3411.0,3410.4,0.55]
[1718675910969,2.9317,3411.0,3410.1,0.55]
[1718675911171,2.93128,3411.5,3410.5,2.93207]
[1718675911401,2.93128,3411.5,3410.6,3.60863446]
[1718675911529,2.93171,3411.0,3410.6,0.55]
[1718675911726,2.93159,3411.2,3410.6,0.55]
[1718675911957,2.93159,3411.2,3410.4,0.55]
[1718675912166,2.93159,3411.2,3410.3,0.55]
[1718675912372,2.93161,3411.1,3410.3,0.55]
[1718675912875,2.93209,3410.6,3410.2,3.0]
[1718675913166,2.93187,3410.8,3409.7,5.93279]
[1718675913381,2.93187,3410.8,3409.7,5.93276]
[1718675913577,2.93187,3410.8,3409.7,3.0]
[1718675913578,2.9319,3410.8,3409.7,3.0]
[1718675913869,3.680243,3411.5,3409.3,3.29904877]
[1718675914036,2.93107,3411.8,3410.5,2.93209]
[1718675914356,11.66056906,3412.1,3410.7,2.93193]
[1718675914357,10.2985,3412.1,3410.7,2.93193]
[1718675914568,2.9308,3412.1,3410.9,2.93176]
[1718675914869,2.93092,3411.9,3411.0,0.55]
[1718675915082,2.93116,3411.7,3411.0,3.55]
[1718675915233,2.93084,3412.0,3411.0,3.54025691]
[1718675915436,2.93095,3411.9,3411.1,3.0]
[1718675915744,2.93095,3411.9,3411.2,0.55]
[1718675915946,2.93095,3411.9,3411.2,0.05862394]
[1718675916149,2.93095,3411.9,3411.3,0.55]
[1718675916444,3.51711,3411.9,3411.3,0.55]
[1718675916648,0.58617,3411.9,3411.1,0.55]
[1718675916888,2.93109,3411.7,3411.1,0.55]
[1718675917174,2.93101,3411.8,3411.1,0.55]
[1718675917381,2.93118,3411.6,3410.8,0.55]
[1718675917708,2.93118,3411.6,3410.8,0.648201]
[1718675917872,2.93074,3412.1,3410.8,0.648201]
[1718675918056,2.93136,3411.4,3410.8,3.0]
[1718675918376,2.93144,3411.3,3410.4,3.0]
[1718675918678,2.93162,3411.1,3410.3,3.0]
[1718675918857,2.93167,3411.1,3409.7,2.93278]
[1718675919271,6.0258,3410.9,3409.6,0.3853]
[1718675919589,6.0258,3410.9,3409.3,2.93309]
[1718675919590,2.93223,3410.4,3409.4,3.30145488]
[1718675919736,2.93231,3410.3,3409.4,0.36843488]
[1718675919935,2.93238,3410.2,3409.4,0.36843488]
[1718675920149,2.93238,3410.2,3409.0,3.31863]
[1718675920370,2.93249,3410.1,3409.2,2.93322]
[1718675920544,2.93229,3410.3,3409.2,2.93322]
[1718675921141,2.9324,3410.2,3409.2,2.93322]
[1718675921550,2.9324,3410.2,3409.3,5.93314]
[1718675921860,2.9324,3410.2,3409.4,0.886646]
[1718675922046,2.9324,3410.2,3409.3,3.0]
[1718675922248,2.93247,3410.1,3409.4,0.55]
[1718675922482,2.93247,3410.1,3408.9,2.93342]
[1718675922483,3.094,3410.1,3408.9,2.93342]
[1718675922704,2.93273,3409.8,3408.8,2.93357]
[1718675923276,2.93279,3409.8,3408.6,2.93373]
[1718675923477,2.93279,3409.8,3408.7,0.331903]
[1718675923664,2.93279,3409.8,3408.8,2.93357]
[1718675924688,2.93279,3409.8,3408.9,3.0]
[1718675925227,6.02657,3410.0,3409.0,0.55]
[1718675925367,2.93244,3410.2,3409.2,2.93315]
[1718675925707,2.93246,3410.2,3409.3,3.55]
[1718675926084,2.93246,3410.2,3409.3,6.48311]
[1718675926296,6.02625,3410.4,3409.4,2.99168584]
[1718675926482,6.02625,3410.4,3409.5,0.55]
[1718675926483,3.094,3410.3,3409.5,0.55]
[1718675926681,3.094,3410.3,3409.3,3.55]
[1718675926682,3.094,3410.0,3409.3,0.55]
[1718675926900,3.094,3410.0,3409.0,3.55]
[1718675926901,2.93264,3409.9,3409.0,3.55]
[1718675927102,2.93273,3409.8,3409.0,3.55]
[1718675927736,2.93306,3409.4,3408.1,2.93411]
[1718675928221,2.93317,3409.3,3408.3,2.93393]
[1718675928573,6.027,3409.5,3408.4,2.93392]
[1718675928772,6.027,3409.5,3407.9,2.93427]
[1718675928773,3.094,3409.5,3408.5,2.93383]
[1718675929014,6.027,3409.5,3408.5,2.93383]
[1718675929222,6.027,3409.5,3408.3,2.934]
[1718675929428,2.93307,3409.4,3408.5,2.93382]
[1718675929630,2.93307,3409.4,3408.6,3.55]
[1718675929789,2.93295,3409.6,3408.6,6.48375]
[1718675929990,2.93295,3409.6,3408.6,3.48375]
[1718675930303,3.99321147,3409.8,3408.7,3.0]
[1718675930304,2.93281,3409.7,3408.7,3.0]
[1718675930626,7.4337,3410.2,3409.0,2.93339]
[1718675930928,1.36246967,3410.9,3409.1,3.60865822]
[1718675930929,6.8215,3410.8,3409.1,3.60865822]
[1718675931087,6.02606,3410.6,3409.5,2.93297]
[1718675931289,6.02606,3410.6,3409.6,0.60865185]
[1718675931486,2.93263,3410.0,3409.6,0.55]
[1718675931702,3.094,3410.3,3409.6,0.55]
[1718675931703,2.93247,3410.1,3409.6,0.55]
[1718675931904,6.02637,3410.3,3409.3,3.55]
[1718675932109,2.93247,3410.1,3409.4,3.0]
[1718675932312,2.93247,3410.1,3409.5,0.55]
[1718675932688,2.93219,3410.5,3409.6,0.05865735]
[1718675932893,3.094,3410.4,3409.4,3.0]
[1718675933133,2.93223,3410.4,3409.5,3.54161494]
[1718675933339,2.93223,3410.4,3409.6,3.0]
[1718675933544,2.93198,3410.7,3409.6,0.55]
[1718675933691,3.094,3410.9,3409.7,3.33967901]
[1718675933889,2.93176,3411.0,3409.8,0.60864667]
[1718675934134,2.93176,3411.0,3409.8,3.54133667]
[1718675934298,7.1725,3411.4,3409.8,0.55]
[1718675934299,2.93203,3410.7,3409.8,0.55]
[1718675934954,6.02605,3410.6,3409.8,3.55]
[1718675935094,3.696605,3410.5,3409.6,0.55]
[1718675935432,2.93235,3410.3,3409.6,0.55]
[1718675935994,2.93235,3410.3,3409.5,0.55]
[1718675936195,2.93193,3410.8,3409.8,2.93271]
[1718675936420,2.93193,3410.8,3409.9,0.6086463]
[1718675936667,2.93193,3410.8,3409.9,3.5412763]
[1718675936825,2.93193,3410.8,3410.0,3.0]
[1718675937022,2.93193,3410.8,3410.1,0.55]
[1718675937452,7.1725,3411.4,3410.2,0.05864628]
[1718675937768,2.93135,3411.4,3410.5,2.93209]
[1718675938053,2.93135,3411.4,3410.3,3.48227]
[1718675938054,2.93135,3411.4,3410.6,3.0]
[1718675938255,1.36395297,3412.2,3410.6,3.0]
[1718675938256,2.9311,3411.7,3410.7,0.55]
[1718675938555,2.9311,3411.7,3410.7,6.48194]
[1718675938748,2.9311,3411.7,3410.8,2.99047933]
[1718675938916,2.9311,3411.7,3410.9,3.55]
[1718675939118,1.36395297,3412.6,3411.0,0.05862929]
[1718675939346,6.897,3412.8,3411.0,0.05862929]
[1718675939347,2.93024,3412.7,3411.2,2.93151]
[1718675939548,2.92,3413.1,3411.7,2.93104]
[1718675939821,3.26,3413.2,3412.2,2.93064]
[1718675939822,9.28383,3413.2,3412.2,2.93064]
[1718675940131,2.9299,3413.1,3412.3,0.55]
[1718675940457,2.92991,3413.1,3412.1,2.93071]
[1718675940617,2.92991,3413.1,3412.0,0.60860962]
[1718675940618,2.93007,3412.9,3412.2,3.55]
[1718675940821,2.93007,3412.9,3412.3,0.55]
[1718675941021,2.93007,3412.9,3412.0,6.48082]
[1718675941225,10.26485,3413.5,3412.0,0.55]
[1718675941226,3.088,3412.7,3412.0,0.55]
[1718675941576,2.93059,3412.3,3411.2,2.93149]
[1718675941720,2.93033,3412.6,3411.4,2.93133]
[1718675942066,1.36511089,3413.2,3412.0,2.9308]
[1718675942067,3.088,3413.1,3412.0,2.9308]
[1718675942260,3.982755,3413.1,3412.1,3.05860795]
[1718675942558,2.92938,3413.7,3412.6,2.93029]
[1718675942862,2.92956,3413.5,3412.7,3.55]
[1718675943363,3.088,3413.8,3413.1,2.92983]
[1718675943521,3.088,3413.8,3412.7,0.55]
[1718675943522,2.92924,3413.9,3413.2,0.55]
[1718675943866,7.3353,3414.1,3412.7,3.48017]
[1718675943867,2.92903,3414.1,3412.8,3.0]
[1718675944080,2.92914,3414.0,3412.9,4.13504]
[1718675944263,3.088,3414.1,3413.0,5.98854115]
[1718675944470,2.94,3414.3,3413.4,2.9296]
[1718675944680,2.94,3414.3,3413.0,3.53853115]
[1718675944681,5.86887,3414.3,3413.5,3.0]
[1718675944839,2.92914,3414.0,3413.6,0.55]
[1718675945038,2.929,3414.2,3413.6,0.55]
[1718675945272,2.92905,3414.1,3413.6,0.55]
[1718675945675,2.92905,3414.1,3413.3,0.55]
[1718675945898,2.92905,3414.1,3413.2,0.55]
[1718675946339,2.92905,3414.1,3413.3,0.05858773]
[1718675946543,5.86891,3414.3,3413.4,0.55]
[1718675946771,5.86891,3414.3,3413.4,3.60858548]
[1718675947280,2.92839,3414.9,3413.8,2.92926]
[1718675947445,10.2096,3415.3,3413.9,3.60857603]
[1718675947446,2.9283,3415.0,3413.9,3.60857603]
[1718675947644,2.92837,3414.9,3414.0,3.0]
[1718675947951,2.92855,3414.7,3414.1,0.55]
[1718675948356,2.92864,3414.6,3413.9,0.55]
[1718675948747,2.92864,3414.6,3413.7,0.55]
[1718675949079,2.92844,3414.8,3413.8,2.92927]
[1718675949382,2.92844,3414.8,3413.9,3.47918]
[1718675949539,2.92844,3414.8,3414.0,3.0]
[1718675949745,2.92879,3414.4,3414.1,0.55]
[1718675950071,2.92878,3414.4,3413.9,0.55]
[1718675950270,2.92863,3414.6,3412.7,0.3853]
[1718675950271,2.92938,3413.7,3412.7,0.3853]
[1718675950479,2.92898,3414.2,3413.1,2.92987]
[1718675950676,2.92811,3415.2,3413.7,2.92934]
[1718675950677,2.92857,3414.7,3413.7,2.92934]
[1718675950862,2.9287,3414.5,3413.1,2.92986]
[1718675951057,2.92887,3414.3,3413.3,2.92969]
[1718675951258,2.92861,3414.6,3413.3,0.292969]
[1718675951458,2.92849,3414.8,3413.7,2.9293]
[1718675951762,2.92852,3414.7,3413.8,3.0]
[1718675951943,7.3996,3415.3,3414.1,2.92901]
[1718675951944,10.32763,3415.3,3414.1,2.92901]
[1718675952148,2.92829,3415.0,3414.2,3.05856938]
[1718675952379,2.92829,3415.0,3414.2,3.60856938]
[1718675952600,2.92829,3415.0,3414.2,0.60856938]
[1718675952898,2.92829,3415.0,3413.9,3.0]
[1718675952899,3.088,3414.4,3413.9,3.0]
[1718675953200,2.9289,3414.3,3413.2,2.92978]
[1718675953360,2.92871,3414.5,3412.9,2.92999]
[1718675953685,2.9288,3414.4,3413.5,2.92952]
[1718675953847,2.9288,3414.4,3413.6,0.05858138]
[1718675954197,2.9291,3414.1,3413.1,2.92987]
[1718675954483,2.92913,3414.0,3413.0,0.331529]
[1718675954691,2.92937,3413.7,3413.0,3.0]
[1718675954888,2.92904,3414.1,3413.1,0.05859361]
[1718675955187,2.92876,3414.5,3412.7,3.29432697]
[1718675955188,2.92959,3413.5,3412.9,3.0]
[1718675955387,2.92928,3413.9,3412.6,5.9303]
[1718675955592,2.92912,3414.0,3413.0,2.92994]
[1718675955889,2.92912,3414.0,3412.7,0.05859363]
[1718675955890,2.92904,3414.1,3413.1,5.92986]
[1718675956666,2.92904,3414.1,3413.2,0.55]
[1718675956864,3.088,3414.2,3413.2,0.55]
[1718675957105,2.92898,3414.2,3413.2,0.55]
[1718675957260,2.9292,3413.9,3412.9,0.55]
[1718675957455,2.92906,3414.1,3413.1,2.92987]
[1718675957456,2.92909,3414.1,3413.1,2.92987]
[1718675957751,3.088,3414.2,3413.2,3.55]
[1718675957953,2.92938,3413.7,3412.7,3.0]
[1718675958161,2.92948,3413.6,3412.6,2.93024]
[1718675958384,2.92955,3413.5,3412.7,3.0]
[1718675958587,2.92914,3414.0,3412.7,4.186071]